bitfinex-derivatives/quotes_SOLF0:USTF0_20250831
["timestamp","ask_amount","ask_price","bid_price","bid_amount"]
[1756663955174,7.43,205.16,205.07,4.09781726]
[1756663955376,7.43,205.16,205.04,13.14987604]
[1756663955377,7.43,205.16,205.06,4.09781726]
[1756663955573,2.69746339,205.15,205.06,4.09781726]
[1756663955778,7.43,205.14,205.05,4.09781726]
[1756663956377,7.43,205.14,205.04,11.78781726]
[1756663956580,2.69746339,205.15,205.04,11.78781726]
[1756663956775,7.43,205.14,205.05,4.09781726]
[1756663957981,7.43,205.14,205.04,11.78781726]
[1756663958181,7.91,205.14,205.04,11.78781726]
[1756663958672,2.69746339,205.15,205.04,11.78781726]
[1756663958877,7.91,205.14,205.04,11.78781726]
[1756663959982,2.69746339,205.15,205.04,11.78781726]
[1756663960683,7.91,205.14,205.04,11.78781726]
[1756663960982,2.69746339,205.15,205.04,11.78781726]
[1756663961581,7.91,205.14,205.04,11.78781726]
[1756663961782,2.69746339,205.15,205.04,11.78781726]
[1756663961983,7.91,205.14,205.04,11.78781726]
[1756663962286,2.69746339,205.15,205.04,11.78781726]
[1756663962586,7.91,205.14,205.04,11.78781726]
[1756663963287,2.69746339,205.15,205.04,11.78781726]
[1756663963586,7.91,205.14,205.04,11.78781726]
[1756663963786,7.91,205.14,205.04,7.69]
[1756663969493,16.62,205.13,205.05,7.48]
[1756663970187,16.62,205.13,205.06,7.48]
[1756663971787,16.62,205.13,205.07,7.48]
[1756663978396,7.91,205.14,205.07,7.48]
[1756663988800,7.91,205.14,205.07,11.57781726]
[1756663993504,7.91,205.14,205.08,7.26]
[1756663999909,7.35,205.12,205.06,4.09781726]
[1756664000109,1.72643109,205.09,205.05,4.09781726]
[1756664000313,1.72643109,205.09,205.04,11.35781726]
[1756664000509,7.35,205.08,205.05,7.26]
[1756664005208,7.35,205.08,205.03,4.09781726]
[1756664005412,7.35,205.08,205.05,7.26]
[1756664006413,7.35,205.08,205.04,4.09781726]
[1756664006810,10.04756685,205.11,205.05,7.26]
[1756664007010,10.04756685,205.14,205.06,7.26]
[1756664007311,29.98756685,205.14,205.06,7.26]
[1756664008717,27.29,205.14,205.06,7.26]
[1756664019231,47.81,205.14,205.07,2.69756685]
[1756664019426,47.81,205.14,205.08,7.94]
[1756664024132,9.46577264,205.13,205.07,7.94]
[1756664025022,1.72577264,205.13,205.08,1.72577264]
[1756664025221,7.74,205.12,205.09,7.94]
[1756664025826,7.74,205.12,205.06,13.7635899]
[1756664028633,7.74,205.12,205.06,5.8235899]
[1756664028832,7.74,205.12,205.07,7.94]
[1756664029234,7.74,205.12,205.06,5.8235899]
[1756664029436,7.74,205.12,205.07,7.94]
[1756664030130,7.74,205.12,205.06,5.8235899]
[1756664030332,7.74,205.12,205.07,7.94]
[1756664030931,7.74,205.13,205.07,7.94]
[1756664032735,7.74,205.13,205.07,9.66577264]
[1756664034039,7.74,205.13,205.07,7.94]
[1756664034240,7.74,205.13,205.07,9.66577264]
[1756664039142,7.74,205.13,205.07,7.94]
[1756664039341,7.74,205.13,205.07,9.66577264]
[1756664039643,1.72577264,205.12,205.07,9.66577264]
[1756664039846,7.74,205.09,205.05,13.7635899]
[1756664040042,7.74,205.09,205.06,7.94]
[1756664042545,7.74,205.09,205.05,5.8235899]
[1756664043838,7.74,205.09,205.06,7.94]
[1756664047249,7.74,205.09,205.05,1.72577264]
[1756664047549,7.74,205.09,205.06,7.94]
[1756664047747,7.74,205.09,205.06,7.22]
[1756664050749,67.20577264,205.12,205.06,7.22]
[1756664051050,7.84,205.11,205.06,7.22]
[1756664051749,67.20577264,205.12,205.06,7.22]
[1756664052647,7.84,205.11,205.06,7.22]
[1756664053051,7.84,205.11,205.05,1.72577264]
[1756664056851,1.72577264,205.1,205.04,11.31781726]
[1756664057058,7.84,205.09,205.04,7.22]
[1756664057253,1.72577264,205.1,205.04,7.22]
[1756664057856,7.84,205.09,205.04,7.22]
[1756664058058,1.72577264,205.1,205.04,7.22]
[1756664058752,1.72577264,205.09,205.04,7.22]
[1756664059458,7.84,205.08,205.04,7.22]
[1756664059650,1.72577264,205.09,205.04,7.22]
[1756664059854,7.84,205.08,205.04,7.22]
[1756664060055,1.72577264,205.09,205.04,7.22]
[1756664060960,7.84,205.08,205.04,7.22]
[1756664061159,1.72577264,205.09,205.04,7.22]
[1756664061656,7.84,205.08,205.04,7.22]
[1756664061861,1.72577264,205.09,205.04,7.22]
[1756664062560,1.72577264,205.09,205.03,5.8235899]
[1756664062561,7.84,205.16,205.08,7.22]
[1756664062757,329.42577264,205.19,205.13,7.22]
[1756664062951,327.7,205.19,205.16,1.72577264]
[1756664063152,327.7,205.19,205.17,7.22]
[1756664064259,7.84,205.25,205.15,2.69436757]
[1756664064464,7.84,205.25,205.19,7.22]
[1756664067365,126.32,205.25,205.19,7.22]
[1756664073980,126.32,205.25,205.13,7.22]
[1756664074180,126.32,205.25,205.15,7.22]
[1756664080686,7.84,205.25,205.15,7.22]
[1756664080985,2.69436757,205.26,205.1,6.79218483]
[1756664080986,7.62,205.26,205.18,7.22]
[1756664081883,7.62,205.26,205.21,7.22]
[1756664082084,7.62,205.26,205.2,2.69436757]
[1756664082686,7.62,205.26,205.21,7.22]
[1756664082987,7.62,205.26,205.2,2.69436757]
[1756664083582,7.62,205.26,205.21,7.22]
[1756664083985,7.62,205.26,205.2,2.69436757]
[1756664084187,7.62,205.27,205.21,7.22]
[1756664088089,9.34329741,205.27,205.21,1.72329741]
[1756664090588,7.62,205.27,205.21,1.72329741]
[1756664090889,1.72329741,205.26,205.21,8.94329741]
[1756664091693,7.62,205.25,205.21,8.94329741]
[1756664091994,1.72329741,205.26,205.21,8.94329741]
[1756664092391,7.62,205.25,205.21,8.94329741]
[1756664092697,7.62,205.25,205.22,7.22]
[1756664092894,126.04,205.25,205.22,7.22]
[1756664093390,118.42,205.25,205.21,1.72329741]
[1756664093593,7.62,205.24,205.21,1.72329741]
[1756664093896,7.62,205.24,205.21,8.94329741]
[1756664095192,9.34329741,205.24,205.13,7.22]
[1756664095398,9.34329741,205.24,205.18,1.72329741]
[1756664095692,9.34329741,205.24,205.19,7.22]
[1756664095995,7.62,205.23,205.17,7.22]
[1756664100392,7.62,205.23,205.13,7.22]
[1756664100593,7.62,205.23,205.13,9.91335202]
[1756664100799,7.62,205.23,205.14,7.22]
[1756664101001,118.4,205.25,205.17,7.22]
[1756664101496,126.02,205.25,205.17,7.22]
[1756664102294,128.71335202,205.25,205.17,7.22]
[1756664102503,2.69335202,205.22,205.14,7.22]
[1756664102701,7.62,205.21,205.14,7.22]
[1756664106302,7.62,205.21,205.15,4.09781726]
[1756664107195,2.69335202,205.22,205.16,4.09781726]
[1756664107695,7.62,205.21,205.16,4.09781726]
[1756664107900,2.69335202,205.22,205.16,4.09781726]
[1756664108302,7.78,205.21,205.15,4.09781726]
[1756664108502,118.4,205.2,205.15,4.09781726]
[1756664108697,118.4,205.2,205.15,11.81781726]
[1756664108903,7.78,205.19,205.15,11.81781726]
[1756664109104,118.4,205.2,205.15,11.81781726]
[1756664110606,7.78,205.19,205.15,11.81781726]
[1756664110801,118.4,205.2,205.15,11.81781726]
[1756664111504,7.78,205.19,205.15,11.81781726]
[1756664112307,7.78,205.19,205.16,7.72]
[1756664112702,7.78,205.19,205.15,4.09781726]
[1756664112910,118.4,205.23,205.17,7.72]
[1756664113107,118.4,205.23,205.17,4.09781726]
[1756664113305,118.4,205.23,205.18,10.41335202]
[1756664113606,7.78,205.25,205.19,11.81781726]
[1756664114708,121.09335202,205.26,205.19,4.09781726]
[1756664114913,7.78,205.25,205.16,4.09781726]
[1756664121212,121.09335202,205.26,205.16,11.81781726]
[1756664121413,7.78,205.25,205.16,11.81781726]
[1756664122016,121.09335202,205.26,205.16,11.81781726]
[1756664122414,7.78,205.25,205.17,4.09781726]
[1756664124016,7.78,205.25,205.16,11.81781726]
[1756664124815,7.78,205.25,205.16,7.72]
[1756664127111,7.78,205.25,205.17,7.72]
[1756664127310,118.42,205.24,205.17,7.72]
[1756664127610,7.78,205.23,205.17,7.72]
[1756664135925,7.78,205.23,205.17,11.81781726]
[1756664137027,7.78,205.23,205.17,7.72]
[1756664137420,7.78,205.23,205.17,11.81781726]
[1756664138125,9.50419646,205.23,205.17,11.81781726]
[1756664140628,9.50419646,205.23,205.17,7.72]
[1756664140831,7.78,205.23,205.18,1.72419646]
[1756664141035,19.94,205.22,205.19,7.76]
[1756664141239,19.94,205.22,205.18,5.82201372]
[1756664141445,19.94,205.22,205.19,7.76]
[1756664141634,19.94,205.22,205.18,5.82201372]
[1756664141840,19.94,205.22,205.19,7.76]
[1756664142040,19.94,205.22,205.18,5.82201372]
[1756664142343,19.94,205.22,205.19,7.76]
[1756664142738,7.48,205.26,205.21,7.76]
[1756664143047,125.88,205.26,205.2,5.82201372]
[1756664143344,125.88,205.26,205.21,7.76]
[1756664143647,125.88,205.26,205.2,5.82201372]
[1756664143845,125.88,205.26,205.21,7.76]
[1756664144246,125.88,205.26,205.23,7.76]
[1756664144945,118.4,205.26,205.23,7.76]
[1756664145246,7.48,205.25,205.23,7.76]
[1756664147143,7.48,205.29,205.2,7.76]
[1756664147345,118.4,205.28,205.21,7.76]
[1756664148349,7.48,205.27,205.21,7.76]
[1756664150546,7.48,205.29,205.21,7.76]
[1756664150745,118.38,205.28,205.21,7.76]
[1756664151347,7.48,205.27,205.21,11.85781726]
[1756664152445,7.48,205.27,205.21,7.76]
[1756664158046,118.38,205.26,205.21,7.76]
[1756664158452,118.38,205.26,205.2,6.7903479]
[1756664158654,118.38,205.26,205.21,7.76]
[1756664159249,118.38,205.26,205.2,6.7903479]
[1756664159948,118.38,205.26,205.21,7.76]
[1756664160253,118.38,205.26,205.2,6.7903479]
[1756664160652,118.38,205.26,205.21,7.76]
[1756664160852,118.38,205.26,205.2,6.7903479]
[1756664161349,118.38,205.26,205.21,7.76]
[1756664161654,118.38,205.26,205.2,2.69253064]
[1756664161855,7.48,205.25,205.18,4.09781726]
[1756664162147,7.48,205.25,205.17,4.09781726]
[1756664162450,7.48,205.23,205.15,4.09781726]
[1756664163652,7.48,205.23,205.14,4.09781726]
[1756664167352,7.48,205.23,205.15,7.76]
[1756664167951,9.20410012,205.23,205.17,1.72410012]
[1756664169756,7.48,205.23,205.17,1.72410012]
[1756664169958,9.20410012,205.23,205.17,1.72410012]
[1756664173158,9.20410012,205.23,205.14,4.09781726]
[1756664173452,24.82,205.23,205.18,1.72410012]
[1756664173753,24.82,205.23,205.19,7.84]
[1756664174051,7.83,205.22,205.19,7.84]
[1756664174959,7.83,205.22,205.18,1.72410012]
[1756664175160,7.83,205.22,205.16,1.72410012]
[1756664175161,1.72410012,205.22,205.16,1.72410012]
[1756664175355,7.83,205.21,205.16,1.72410012]
[1756664175658,7.83,205.21,205.15,9.56410012]
[1756664176854,7.83,205.19,205.13,5.82191738]
[1756664177057,7.83,205.19,205.13,1.72410012]
[1756664179966,7.83,205.19,205.12,11.93781726]
[1756664180666,7.83,205.21,205.12,11.93781726]
[1756664180866,2.6947631,205.22,205.12,7.84]
[1756664181160,7.83,205.21,205.12,7.84]
[1756664181460,17.34,205.23,205.09,7.84]
[1756664181461,7.83,205.18,205.09,7.84]
[1756664182564,11.12,205.17,205.11,7.84]
[1756664187672,18.95,205.17,205.11,7.84]
[1756664192681,18.95,205.17,205.1,2.6947631]
[1756664192971,11.12,205.17,205.08,93.59184263]
[1756664193373,7.83,205.16,205.08,93.59184263]
[1756664193576,7.83,205.16,205.09,7.84]
[1756664194477,28.87,205.16,205.09,7.84]
[1756664195978,7.83,205.16,205.09,7.84]
[1756664197978,7.83,205.16,205.09,11.93781726]
[1756664200585,17.9,205.17,205.09,11.93781726]
[1756664200878,7.18,205.16,205.09,11.93781726]
[1756664202075,17.9,205.17,205.09,11.93781726]
[1756664202276,7.18,205.15,205.06,4.09781726]
[1756664202482,7.18,205.12,205.04,4.09781726]
[1756664202983,7.18,205.12,205.03,4.09781726]
[1756664207286,2.6947631,205.13,205.02,7.54]
[1756664207488,2.6947631,205.1,205.02,7.54]
[1756664207683,7.18,205.08,205.02,7.54]
[1756664212890,29.88,205.08,205.02,7.54]
[1756664213286,7.18,205.19,205.02,10.2347631]
[1756664213491,7.18,205.13,205.03,7.54]
[1756664213692,7.18,205.13,205.06,7.54]
[1756664213893,7.18,205.17,205.09,7.54]
[1756664214095,23.5,205.17,205.09,7.54]
[1756664214792,7.18,205.17,205.09,7.54]
[1756664214993,32.74,205.18,205.09,7.54]
[1756664215290,39.44,205.19,205.12,7.54]
[1756664215495,46.62,205.19,205.12,7.54]
[1756664216196,7.18,205.19,205.12,7.54]
[1756664218498,118.42,205.18,205.12,7.54]
[1756664219498,125.6,205.18,205.12,7.54]
[1756664221097,118.4,205.17,205.11,2.6947631]
[1756664221298,118.4,205.17,205.11,10.2347631]
[1756664221797,7.18,205.16,205.08,7.54]
[1756664221998,9.8747631,205.16,205.08,7.54]
[1756664222699,7.18,205.16,205.08,7.54]
[1756664222896,118.4,205.15,205.08,11.63275946]
[1756664223095,118.4,205.15,205.08,4.09275946]
[1756664223297,118.4,205.15,205.09,7.54]
[1756664225200,7.18,205.14,205.07,4.09275946]
[1756664225401,7.18,205.14,205.06,11.63275946]
[1756664225602,7.18,205.14,205.07,4.09275946]
[1756664228204,7.18,205.14,205.08,7.8]
[1756664230006,17.06,205.13,205.07,4.09275946]
[1756664230504,17.06,205.13,205.08,7.8]
[1756664230698,17.06,205.13,205.07,4.09275946]
[1756664231400,17.06,205.13,205.08,7.8]
[1756664231900,17.06,205.13,205.07,4.09275946]
[1756664232205,17.06,205.13,205.08,7.8]
[1756664233003,17.06,205.13,205.07,4.09275946]
[1756664233202,17.06,205.13,205.08,7.8]
[1756664233399,17.06,205.13,205.07,4.09275946]
[1756664233603,17.06,205.13,205.08,7.8]
[1756664234207,17.06,205.13,205.07,4.09275946]
[1756664234808,17.06,205.13,205.08,7.8]
[1756664235010,17.06,205.13,205.07,4.09275946]
[1756664235511,17.06,205.13,205.08,7.8]
[1756664236008,2.6947631,205.17,205.07,4.09275946]
[1756664236307,18.21,205.16,205.09,7.8]
[1756664236508,7.97,205.16,205.11,2.6947631]
[1756664236901,7.97,205.16,205.1,14.58752256]
[1756664239910,13.4439747,205.28,205.13,2.6947631]
[1756664240111,7.97,205.26,205.17,7.8]
[1756664241115,7.97,205.26,205.19,10.4947631]
[1756664247210,7.97,205.26,205.19,7.8]
[1756664247714,35.94,205.25,205.19,7.8]
[1756664248314,64.61,205.26,205.19,7.8]
[1756664249815,84.21,205.26,205.19,7.8]
[1756664250717,7.97,205.26,205.19,7.8]
[1756664250918,102.69,205.26,205.19,7.8]
[1756664251813,7.97,205.26,205.19,7.8]
[1756664252015,120.15,205.26,205.19,7.8]
[1756664254620,7.97,205.26,205.19,7.8]
[1756664254821,126.85,205.26,205.19,7.8]
[1756664255916,126.85,205.26,205.13,4.09275946]
[1756664256117,126.85,205.26,205.17,10.4947631]
[1756664256420,7.97,205.25,205.17,10.4947631]
[1756664258725,126.79,205.25,205.17,10.4947631]
[1756664259023,7.97,205.25,205.18,7.77]
[1756664264728,7.97,205.25,205.2,2.6947631]
[1756664264924,7.97,205.25,205.21,7.77]
[1756664265120,7.97,205.25,205.2,2.6947631]
[1756664265328,7.97,205.25,205.21,7.77]
[1756664265921,20.2,205.27,205.21,7.77]
[1756664266223,7.23,205.24,205.21,7.77]
[1756664268230,7.23,205.28,205.21,7.77]
[1756664268430,46.69,205.28,205.21,7.77]
[1756664268726,7.23,205.28,205.21,7.77]
[1756664269131,7.23,205.28,205.24,7.77]
[1756664269631,7.23,205.28,205.23,2.6947631]
[1756664269828,7.23,205.28,205.24,7.77]
[1756664270324,107.03,205.31,205.24,7.77]
[1756664274134,7.23,205.31,205.24,7.77]
[1756664274335,125.89,205.31,205.24,7.77]
[1756664278746,125.89,205.31,205.23,2.6947631]
[1756664279243,7.23,205.31,205.23,10.4647631]
[1756664279444,125.83,205.3,205.24,7.77]
[1756664280036,125.83,205.3,205.21,7.77]
[1756664280435,7.23,205.28,205.18,7.77]
[1756664280644,2.6947631,205.26,205.18,7.77]
[1756664281144,7.23,205.25,205.18,7.77]
[1756664281345,118.68,205.24,205.18,7.77]
[1756664281550,7.23,205.23,205.16,4.09275946]
[1756664282543,7.23,205.23,205.17,2.6947631]
[1756664282746,125.91,205.23,205.18,7.77]
[1756664283145,125.91,205.23,205.17,6.78752256]
[1756664284043,125.91,205.23,205.18,4.09918315]
[1756664284446,7.23,205.26,205.2,2.6947631]
[1756664284646,125.95,205.26,205.2,14.56394625]
[1756664284848,118.76,205.27,205.21,7.77]
[1756664285050,125.99,205.28,205.21,11.86918315]
[1756664285850,125.99,205.28,205.24,7.77]
[1756664286350,2.6947631,205.33,205.24,7.77]
[1756664286351,118.78,205.29,205.24,7.77]
[1756664287146,7.23,205.28,205.24,7.77]
[1756664288350,7.82,205.28,205.24,7.77]
[1756664289152,118.78,205.29,205.24,7.77]
[1756664289452,7.82,205.28,205.24,7.77]
[1756664290454,118.78,205.29,205.24,7.77]
[1756664290649,7.82,205.28,205.24,7.77]
[1756664291050,118.78,205.29,205.24,7.77]
[1756664291247,118.72,205.29,205.23,2.6947631]
[1756664292154,118.72,205.29,205.24,7.63]
[1756664292363,118.72,205.29,205.23,10.3247631]
[1756664292859,7.82,205.28,205.23,10.3247631]
[1756664293162,118.72,205.29,205.23,10.3247631]
[1756664293657,7.82,205.28,205.23,10.3247631]
[1756664294156,7.82,205.28,205.23,2.6947631]
[1756664294357,126.54,205.29,205.24,7.63]
[1756664294551,118.72,205.29,205.24,7.63]
[1756664294951,118.72,205.29,205.23,2.6947631]
[1756664295148,118.72,205.29,205.24,7.63]
[1756664295552,126.54,205.29,205.23,10.3247631]
[1756664296260,7.82,205.29,205.26,10.3247631]
[1756664296458,118.66,205.31,205.23,4.0996931]
[1756664296755,7.82,205.3,205.25,2.6947631]
[1756664297557,118.66,205.31,205.25,2.6947631]
[1756664297755,7.82,205.3,205.25,2.6947631]
[1756664298658,118.66,205.31,205.25,2.6947631]
[1756664299153,7.82,205.3,205.25,2.6947631]
[1756664299561,118.66,205.31,205.25,2.6947631]
[1756664300061,7.82,205.3,205.25,2.6947631]
[1756664300256,118.66,205.31,205.25,2.6947631]
[1756664300457,118.66,205.31,205.25,10.3247631]
[1756664301462,7.82,205.3,205.25,10.3247631]
[1756664301755,118.66,205.31,205.25,10.3247631]
[1756664302155,7.82,205.3,205.25,10.3247631]
[1756664302355,118.66,205.31,205.25,10.3247631]
[1756664302962,327.64,205.35,205.25,10.3247631]
[1756664303158,118.56,205.34,205.25,10.3247631]
[1756664303360,7.82,205.33,205.25,10.3247631]
[1756664303560,118.56,205.34,205.25,10.3247631]
[1756664303967,7.82,205.33,205.25,10.3247631]
[1756664304169,327.64,205.35,205.25,10.3247631]
[1756664304369,126.36,205.34,205.26,7.63]
[1756664306075,126.36,205.34,205.28,2.6947631]
[1756664306771,7.82,205.34,205.28,10.3247631]
[1756664306975,118.52,205.33,205.28,10.3247631]
[1756664307573,7.82,205.32,205.28,10.3247631]
[1756664307963,126.4,205.32,205.29,7.63]
[1756664308163,7.82,205.31,205.28,7.63]
[1756664308364,7.82,205.31,205.28,10.3247631]
[1756664309271,7.82,205.31,205.28,7.63]
[1756664309475,7.82,205.31,205.29,2.6947631]
[1756664309769,118.58,205.32,205.27,2.6947631]
[1756664309969,7.82,205.31,205.27,10.3247631]
[1756664310474,118.58,205.32,205.27,2.6947631]
[1756664310673,7.82,205.31,205.27,2.6947631]
[1756664311077,118.58,205.32,205.27,2.6947631]
[1756664311576,118.58,205.32,205.27,10.3247631]
[1756664311773,7.82,205.31,205.27,10.3247631]
[1756664312473,7.82,205.31,205.27,2.6947631]
[1756664312778,7.82,205.31,205.25,4.09668164]
[1756664313079,7.82,205.31,205.24,6.79144474]
[1756664314977,7.82,205.31,205.24,2.6947631]
[1756664317777,7.95,205.29,205.24,2.6947631]
[1756664317975,7.95,205.34,205.25,7.19]
[1756664318177,118.52,205.33,205.27,2.6947631]
[1756664318879,7.95,205.32,205.27,2.6947631]
[1756664319275,118.52,205.33,205.27,2.6947631]
[1756664319781,7.95,205.32,205.25,9.8847631]
[1756664320676,118.5,205.31,205.25,9.8847631]
[1756664323281,7.95,205.32,205.25,9.8847631]
[1756664323977,7.56,205.31,205.25,9.8847631]
[1756664324383,7.95,205.3,205.25,9.8847631]
[1756664324585,7.56,205.31,205.25,2.6947631]
[1756664324982,7.95,205.3,205.25,9.8847631]
[1756664325281,15.51,205.31,205.25,9.8847631]
[1756664327083,15.51,205.31,205.25,13.98357511]
[1756664329483,7.95,205.31,205.25,13.98357511]
[1756664331487,46.61,205.31,205.25,13.98357511]
[1756664331987,7.95,205.31,205.25,13.98357511]
[1756664336089,7.95,205.31,205.26,4.09881201]
[1756664336492,53.04,205.32,205.26,4.09881201]
[1756664336687,7.95,205.31,205.26,4.09881201]
[1756664336992,53.04,205.32,205.26,4.09881201]
[1756664337593,7.95,205.31,205.26,4.09881201]
[1756664337789,53.04,205.32,205.26,4.09881201]
[1756664337991,53.04,205.32,205.28,1.72250105]
[1756664338384,7.95,205.31,205.28,1.72250105]
[1756664338790,7.95,205.31,205.26,4.09881201]
[1756664338994,7.95,205.31,205.25,1.72250105]
[1756664339694,73.24,205.3,205.25,1.72250105]
[1756664339896,73.24,205.3,205.25,8.91250105]
[1756664340093,7.95,205.29,205.25,1.72250105]
[1756664340797,73.24,205.3,205.25,1.72250105]
[1756664341600,7.95,205.35,205.25,1.72250105]
[1756664341796,1.72250105,205.32,205.25,1.72250105]
[1756664342299,7.95,205.31,205.25,1.72250105]
[1756664342998,109.83,205.31,205.25,1.72250105]
[1756664343497,1.72250105,205.3,205.24,4.09881201]
[1756664343693,1.72250105,205.25,205.2,11.28881201]
[1756664343896,7.95,205.24,205.2,4.09881201]
[1756664344197,1.72250105,205.25,205.19,100.31002761]
[1756664344397,7.95,205.24,205.19,5.82131306]
[1756664344805,1.72250105,205.25,205.19,5.82131306]
[1756664345504,7.95,205.22,205.17,4.09881201]
[1756664345704,24.34,205.22,205.16,13.01131306]
[1756664345903,7.95,205.21,205.16,13.01131306]
[1756664346100,24.34,205.22,205.16,7.19]
[1756664346299,7.95,205.21,205.16,7.19]
[1756664346695,7.95,205.21,205.14,4.09881201]
[1756664346902,7.95,205.21,205.13,4.09881201]
[1756664347099,7.95,205.21,205.12,7.19]
[1756664347502,7.95,205.21,205.14,7.19]
[1756664348111,7.95,205.21,205.14,9.88446276]
[1756664349713,7.95,205.21,205.14,2.69446276]
[1756664349909,7.95,205.21,205.11,10.24446276]
[1756664350212,60.26,205.22,205.11,10.24446276]
[1756664350407,76.47,205.21,205.12,7.55]
[1756664350605,76.47,205.21,205.14,2.69446276]
[1756664351315,7.83,205.21,205.14,2.69446276]
[1756664351616,7.83,205.19,205.14,2.69446276]
[1756664351805,85.16,205.2,205.14,2.69446276]
[1756664352007,7.83,205.19,205.12,7.55]
[1756664352517,7.83,205.19,205.09,2.69446276]
[1756664352716,10.52446276,205.19,205.09,2.69446276]
[1756664356219,7.83,205.19,205.09,2.69446276]
[1756664357519,100.7,205.18,205.09,2.69446276]
[1756664357721,115.75,205.17,205.09,2.69446276]
[1756664358723,7.83,205.17,205.09,2.69446276]
[1756664359221,7.83,205.15,205.09,2.69446276]
[1756664359519,14.14,205.14,205.09,2.69446276]
[1756664359719,7.83,205.13,205.09,10.24446276]
[1756664360815,14.14,205.14,205.09,10.24446276]
[1756664361020,7.83,205.13,205.09,10.24446276]
[1756664361322,14.14,205.14,205.09,10.24446276]
[1756664361917,7.83,205.13,205.09,10.24446276]
[1756664362720,21.62,205.14,205.1,7.55]
[1756664362921,21.62,205.14,205.08,2.69446276]
[1756664363122,21.62,205.14,205.09,7.55]
[1756664363325,21.62,205.14,205.08,2.69446276]
[1756664363519,21.62,205.14,205.09,7.55]
[1756664363719,21.62,205.14,205.08,10.24446276]
[1756664366828,7.83,205.15,205.09,7.55]
[1756664367121,7.83,205.18,205.12,7.55]
[1756664367523,27.07,205.18,205.12,7.55]
[1756664368625,45.89,205.18,205.13,2.69446276]
[1756664368825,45.89,205.18,205.14,7.55]
[1756664369022,7.83,205.17,205.12,2.69446276]
[1756664369219,45.89,205.18,205.12,2.69446276]
[1756664373628,7.83,205.18,205.13,7.55]
[1756664373828,7.83,205.2,205.13,7.55]
[1756664374423,7.83,205.2,205.07,4.09881201]
[1756664374625,7.83,205.2,205.15,2.69446276]
[1756664374826,7.83,205.2,205.16,7.55]
[1756664376027,7.83,205.21,205.16,7.55]
[1756664376428,34.7,205.22,205.16,7.55]
[1756664377329,7.83,205.21,205.16,7.55]
[1756664377532,7.83,205.21,205.1,7.55]
[1756664377827,7.83,205.21,205.12,2.69446276]
[1756664380430,37.39446276,205.22,205.12,10.44446276]
[1756664380630,7.7,205.21,205.12,10.44446276]
[1756664380824,37.39446276,205.22,205.12,10.44446276]
[1756664381232,7.7,205.21,205.12,10.44446276]
[1756664381526,37.39446276,205.22,205.12,10.44446276]
[1756664381733,7.7,205.21,205.12,10.44446276]
[1756664382235,37.39446276,205.22,205.12,10.44446276]
[1756664382532,7.7,205.21,205.12,10.44446276]
[1756664382933,2.69446276,205.22,205.12,10.44446276]